Cogmind - Beta 15 @@@ ROGUE MODE // 2025.10.17 @ 00:12:05 Player: carrera Result: Self-destructed Performance ------------- Evolutions (1) 500 Regions Visited (3) 600 Robots Destroyed (18) 90 Value Destroyed (475) 475 Prototype IDs (1) 20 Alien Tech Used (0) 0 Bonus (0) 0 TOTAL SCORE: 1685 Bonus ------- None Cogmind --------- Core Integrity 313/400 Matter 245/300 Energy 45/125 System Corruption 4% Temperature Cool (0) Movement Flying (101) Ox1 Location -9/Storage Parts ------- > --- POWER (1) -------- Light Ion Engine > --- PROPULSION (4) --- Improved Flight Unit Improved Flight Unit Improved Flight Unit Improved Flight Unit > --- UTILITY (2) ------ Large Storage Unit Visual Processing Unit > --- WEAPON (2) ------- Light EM Pulse Cannon Shock Bomb Launcher > --- INVENTORY (15) --- Light Treads Light Treads Aluminum Leg Heat Sink Heat Sink Large Matter Pod (36) Medium Laser Light EM Pulse Cannon Assault Rifle Light Assault Rifle Shock Bomb Launcher Blade Saw Peak State ------------ > --- POWER ------------ Light Ion Engine > --- PROPULSION ------- Improved Flight Unit Improved Flight Unit Improved Flight Unit Improved Flight Unit > --- UTILITY ---------- Large Storage Unit Visual Processing Unit > --- WEAPON ----------- Light EM Pulse Cannon Shock Bomb Launcher > --- INVENTORY -------- Light Treads Light Treads Aluminum Leg Heat Sink Heat Sink Large Matter Pod Medium Laser Light EM Pulse Cannon Assault Rifle Light Assault Rifle Shock Bomb Launcher Blade Saw [Rating: 22] Favorites ----------- Power Light Ion Engine Engine Light Ion Engine Propulsion Aluminum Leg Treads Light Treads Leg Aluminum Leg Flight Unit Improved Flight Unit Utility Large Storage Unit Device Heat Sink Storage Large Storage Unit Processor Visual Processing Unit Weapon Assault Rifle Energy Cannon Light EM Pulse Cannon Ballistic Gun Assault Rifle Launcher Shock Bomb Launcher Build | -11 -10 -9 -9 ------- Run | Yrd Mat Mat Sto Slots Evolved 2 | . . 2 . Power . | . . . . Propulsion 2 | . . 2 . Utility . | . . . . Weapon . | . . . . Parts Attached 23 | 6 6 6 5 Power 3 | 1 1 1 . Engine 3 | 1 1 1 . Core . | . . . . Reactor . | . . . . Propulsion 11 | 2 3 2 4 Treads 2 | . 2 . . Leg 5 | 2 1 2 . Wheel . | . . . . Hover . | . . . . Flight 4 | . . . 4 Utility 4 | 1 2 1 . Device 1 | . 1 . . Storage 2 | 1 1 . . Processor 1 | . . 1 . Hackware . | . . . . Protection . | . . . . Artifact . | . . . . Weapon 5 | 2 . 2 1 Energy Gun . | . . . . Energy Cannon 1 | . . 1 . Ballistic Gun 2 | 2 . . . Ballistic Cannon . | . . . . Launcher 2 | . . 1 1 Special Weapon . | . . . . Impact Weapon . | . . . . Slashing Weapon . | . . . . Piercing Weapon . | . . . . Special Melee Weapon . | . . . . Unidentified Prototypes 1 | . . . 1 Parts Lost 4 | . . 4 . Power . | . . . . Propulsion 3 | . . 3 . Utility . | . . . . Weapon 1 | . . 1 . Highest Loss Streak 3 | . . 3 . To Critical Strikes . | . . . . Average Backups 9 | 3 7 12 13 Power 1 | . 1 1 . Propulsion 3 | 2 4 3 3 Utility 1 | . . 2 3 Weapon 3 | . 1 5 7 Tool/Special . | . . . . Unused Backups 8 | . 2 . 6 Power . | . . . . Propulsion 2 | . 2 . . Utility 2 | . . . 2 Weapon 4 | . . . 4 Tool/Special . | . . . . Average Slot Usage (%) 90 | . 97 94 61 Engine 11 | . 14 10 11 Treads 4 | . 14 . . Leg 26 | . 13 39 9 Flight 1 | . . . 8 Device 4 | . 11 . . Storage 11 | . 14 11 11 Processor 7 | . . 10 11 Energy Cannon 2 | . . 2 11 Ballistic Gun 18 | . 28 17 . Peak Build Rating 22 | 6 7 14 22 Average Rating 9 | 3 6 11 11 On Entrance 5 | . 6 7 9 Naked Turns . | . . . . Heaviest Build 33 | 12 30 33 27 Greatest Support 40 | 20 40 40 20 Greatest Overweight (x) 5 | . 1 2 5 Average Overweight (x) . | . . . 1 Largest Inventory Capacity 15 | 8 15 15 15 Average Capacity 13 | 6 12 15 15 Most Carried 14 | 7 9 14 13 Average Carried 10 | 3 7 12 12 Final Capacity 15 | 8 15 15 15 Final Carried 13 | 6 9 13 12 Class Distribution -------------------- 64% | Mutant 35% | Scavenger-Mutant Dominant Class ---------------- Mutant | -10/Materials Scavenger-Mutant | -9/Materials Mutant | -9/Storage Resources | -11 -10 -9 -9 ----------- Run | Yrd Mat Mat Sto Matter Collected 618 | 260 156 202 . Remotely . | . . . . Salvage Created 629 | . 231 383 15 Parts 37 | . 18 17 2 Haulers Intercepted . | . . . . Recyclers Shooed 1 | . . 1 . Parts Field Recycled . | . . . . Retrieved Matter . | . . . . Parts Self-Destructed . | . . . . Prevented . | . . . . Kills | -11 -10 -9 -9 ------- Run | Yrd Mat Mat Sto Combat Hostiles Destroyed 16 | . 6 9 1 Guns 8 | . 6 2 . Cannons 3 | . . 2 1 AOE 5 | . . 5 . Classes Destroyed 4 | . 1 3 . Worker 1 | . . 1 . Watcher 1 | . . 1 . Swarmer 4 | . . 3 1 Grunt 12 | . 6 6 . Best Kill Streak 8 | . 2 8 1 Combat Bots Only 6 | . 2 6 1 Max Kills in Single Turn 2 | . 1 2 1 Gunslinging . | . . . . Exploded 1 | . . 1 . Melee . | . . . . Uniques/NPCs Destroyed . | . . . . Combat | -11 -10 -9 -9 -------- Run | Yrd Mat Mat Sto Hostile Shots Fired 94 | . 32 50 12 Missed 27 | . 11 12 4 Hits 67 | . 21 38 8 Projectile 67 | . 21 38 8 Critical Strikes 1 | . . 1 . Damage Taken 893 | . 234 584 75 Core 108 | . 21 46 41 Absorbed by Shields . | . . . . Core Remaining (%) 95 | 100 91 . . Volleys Fired 37 | . 16 19 2 Largest 2 | . 2 2 1 Hottest 76 | . 40 76 56 Shots Fired 71 | . 32 37 2 Gun 51 | . 32 19 . Cannon 13 | . . 12 1 Launcher 7 | . . 6 1 Special . | . . . . Kinetic 51 | . 32 19 . Thermal . | . . . . Explosive . | . . . . Electromagnetic 20 | . . 18 2 Robot Hit Streak 9 | . 9 6 5 Robot Miss Streak 3 | . 3 2 1 Penetration Max . | . . . . Secondary Targets 1 | . 1 . . Max Gunslinging Chain 1 | . 1 . . Shots Hit Robots 44 | . 20 23 1 Core Hits 26 | . 9 15 2 Critical Kills . | . . . . Critical Parts Destroyed . | . . . . Critical Strikes 2 | . . 2 . Corrupt 2 | . . 2 . Melee Attacks . | . . . . Impact . | . . . . Slashing . | . . . . Piercing . | . . . . Sneak Attacks . | . . . . Combat Hostiles . | . . . . Follow-up Attacks . | . . . . Damage Inflicted 1127 | . 271 769 87 Guns 406 | . 262 144 . Cannons 223 | . . 203 20 Explosions 482 | . . 415 67 Melee . | . . . . Ramming 16 | . 9 7 . Kinetic 406 | . 262 144 . Thermal 70 | . . 70 . Explosive . | . . . . Electromagnetic 635 | . . 548 87 Impact . | . . . . Slashing . | . . . . Piercing . | . . . . Highest Corruption 4 | . . 4 4 Average Corruption 3 | . . 3 4 Corruption Purged . | . . . . Corruption Blocked . | . . . . Effects 12 | . . 9 3 Message Errors 5 | . . 3 2 Matter Fused 2 | . . 2 . Heat Flow Errors 1 | . . 1 . Parts Rejected 2 | . . 2 . Parts Fused 1 | . . . 1 Alerts 1 | . . 1 . Overload Shots . | . . . . Overflow Damage 4 | . . 4 . Projectiles . | . . . . Explosions 4 | . . 4 . Melee . | . . . . Knockbacks . | . . . . Impact . | . . . . Kinetic . | . . . . Secondary . | . . . . Self-Inflicted Damage 142 | . . 133 9 Shots 8 | . . 7 1 Rammed . | . . . . Targets Rammed 4 | . 1 3 . Kicked 4 | . 1 3 . Crushed . | . . . . Highest Temperature 296 | . . 296 18 Average Temperature 81 | . . 83 13 Received Heat Transfer 318 | . 126 192 . Siege Activations . | . . . . Martial Activations . | . . . . Shielding Activations . | . . . . Robots Disrupted . | . . . . Combat Hostiles . | . . . . Robots Corrupted . | . . . . Combat Hostiles . | . . . . Parts Fried 5 | . . 5 . Impact Corruptions . | . . . . Robots Melted . | . . . . Combat Hostiles . | . . . . Parts Melted . | . . . . Heat Transferred 150 | . . 150 . Parts Sabotaged . | . . . . Parts Stolen . | . . . . Parts Stripped . | . . . . Power Chain Reactions 3 | . . 3 . Alert | -11 -10 -9 -9 ------- Run | Yrd Mat Mat Sto Maximum Alert Level 1 | . . 1 . Low Security (%) 99 | 100 100 99 100 Level 1 . | . . . . Level 2 . | . . . . Level 3 . | . . . . Level 4 . | . . . . Level 5 . | . . . . High Security . | . . . . Max Security . | . . . . Peak Influence 206 | . 50 206 67 Initial 67 | . . 13 67 Average 34 | . 21 50 44 Influence Increases 449 | . 149 276 24 Destroy 0b10 Robot/C 320 | . 120 180 20 Destroy 0b10 Robot/NC 10 | . . 10 . Destroy Leader 62 | . 20 42 . Successful Hack 15 | . 7 4 4 Disable Machine 15 | . . 15 . Destroy Structure 12 | . 2 10 . Lose Combat Pursuer 15 | . . 15 . Influence Decreases 408 | . 117 148 143 Entered New Map 112 | . . 19 93 Time Decay 256 | . 117 89 50 Lost Part 40 | . . 40 . Squads Dispatched 7 | . 3 4 . Investigation 6 | . 2 4 . Extermination . | . . . . Reinforcement 1 | . 1 . . Assault . | . . . . Garrison . | . . . . Intercept . | . . . . Searches Triggered . | . . . . Construction Impeded . | . . . . Haulers Reinforced . | . . . . Active Scanning Responses . | . . . . Cargo Convoy Interrupts . | . . . . Stealth | -11 -10 -9 -9 --------- Run | Yrd Mat Mat Sto Distress Signals 4 | . . 3 1 Communications Jammed . | . . . . Distress Signals . | . . . . Times Spotted 23 | . 6 13 4 Peak Tracking Total 7 | . 3 7 4 Tactical Retreats 1 | . . 1 . Traps | -11 -10 -9 -9 ------- Run | Yrd Mat Mat Sto Traps Triggered 4 | . 1 3 . Indirectly . | . . . . Trap Hack Attempts . | . . . . Triggered . | . . . . Disarmed 3 | . . 3 . Reprogrammed . | . . . . Reused . | . . . . Traps Extracted . | . . . . Installed . | . . . . Triggered . | . . . . Machines | -11 -10 -9 -9 ---------- Run | Yrd Mat Mat Sto Machines Disabled 1 | . . 1 . Max in Single Turn 1 | . . 1 . Machines Repaired . | . . . . Machines Dismantled . | . . . . Machines Sabotaged . | . . . . Overloaded Fab Kills . | . . . . Hacking | -11 -10 -9 -9 --------- Run | Yrd Mat Mat Sto Machines Accessed 7 | . 1 5 1 Terminals 7 | . 1 5 1 Fabricators . | . . . . Repair Stations . | . . . . Recycling Units . | . . . . Scanalyzers . | . . . . Garrison Access . | . . . . Total Hacks 26 | . 5 18 3 Successful 12 | . 2 9 1 Failed 13 | . 3 8 2 Catastrophic 2 | . 1 1 . Database Lockouts 1 | . . 1 . Manual 7 | . 4 3 . Terminals 26 | . 5 18 3 Fabricators . | . . . . Repair Stations . | . . . . Recycling Units . | . . . . Scanalyzers . | . . . . Garrison Access . | . . . . Terminal Hacks 12 | . 2 9 1 Record 6 | . 2 4 . Open Door 1 | . . . 1 Alert Level 1 | . . 1 . Locate Traps 2 | . . 2 . Disarm Traps 1 | . . 1 . Zone Layout 1 | . . 1 . Fabricator Hacks . | . . . . Repair Station Hacks . | . . . . Recycling Unit Hacks . | . . . . Scanalyzer . | . . . . Garrison Access Hacks . | . . . . Unauthorized Hacks . | . . . . Terminals . | . . . . Fabricators . | . . . . Repair Stations . | . . . . Recycling Units . | . . . . Scanalyzers . | . . . . Garrison Access . | . . . . Data Cores Recovered . | . . . . Used . | . . . . Hacking Detections 7 | . 1 5 1 Full Trace Events 5 | . 1 4 . Feedback Events . | . . . . Feedback Blocked . | . . . . Robot Schematics Acquired . | . . . . Robots Built . | . . . . Authchips . | . . . . Time . | . . . . Total Robot Build Rating . | . . . . Part Schematics Acquired . | . . . . Parts Built . | . . . . Authchips . | . . . . Time . | . . . . Total Part Build Rating . | . . . . Parts Repaired . | . . . . Time . | . . . . Parts Recycled . | . . . . Recycled Matter . | . . . . Retrieved Matter . | . . . . Retrieved Components . | . . . . Parts Scanalyzed . | . . . . Part Schematics Acquired . | . . . . Parts Damaged . | . . . . Bothacking | -11 -10 -9 -9 ------------ Run | Yrd Mat Mat Sto Used RIF Installer . | . . . . Robots Hacked . | . . . . Non-combat . | . . . . Combat . | . . . . Robot Hacks Applied . | . . . . Relay Couplers Released . | . . . . Fabnet Peak Effective % . | . . . . Robots Rewired . | . . . . Allies Hacked . | . . . . Hacks Repelled . | . . . . Allies | -11 -10 -9 -9 -------- Run | Yrd Mat Mat Sto Total Allies . | . . . . Largest Group . | . . . . Highest-Rated Group . | . . . . Highest-Rated Ally . | . . . . Total Orders . | . . . . Ally Attacks . | . . . . Total Damage . | . . . . Kills . | . . . . Allies Corrupted . | . . . . Allies Melted . | . . . . Intel | -11 -10 -9 -9 ------- Run | Yrd Mat Mat Sto Active Infowar (turns) 565 | . . 450 115 Optics 565 | . . 450 115 Robot Analysis Total . | . . . . Derelict Logs Recovered . | . . . . Drone Launches . | . . . . Drone Recoveries . | . . . . Exploration | -11 -10 -9 -9 ------------- Run | Yrd Mat Mat Sto Turns Passed 1018 | 154 279 470 115 Spaces Moved 639 | 155 132 304 48 Core 71 | 71 . . . Treads 65 | . 65 . . Legs 486 | 84 67 304 31 Wheels . | . . . . Hover . | . . . . Flight 17 | . . . 17 Fastest Speed 50 | 50 120 120 101 Average Speed 126 | 87 145 124 211 Slowest Speed 400 | 120 190 260 400 Overloaded Moves . | . . . . Propulsion Burnouts . | . . . . Robots Hopped . | . . . . Potential Cave-ins . | . . . . Cave-ins Triggered . | . . . . Exploration Rate (%) 16 | 5 22 29 10 Regions Visited 3 Branch Regions 1 Pre-discovered Areas . | . . . . Known Exits Taken . | . . . . Unknown Exits Taken 3 | 1 1 1 . Scrap Searched . | . . . . Spaces Dug . | . . . . Terrain Destroyed 9 | . . 9 . Melee . | . . . . Projectile . | . . . . AOE 9 | . . 9 . Terrain Rammed . | . . . . Walls Destroyed . | . . . . Machines Disabled . | . . . . Actions | -11 -10 -9 -9 --------- Run | Yrd Mat Mat Sto Total 771 | 170 187 357 57 Wait 44 | 3 25 15 1 Move 636 | 154 131 303 48 Hop . | . . . . Pick Up 18 | 7 4 7 . Fast Attach 11 | 5 1 1 4 Attach 7 | 1 1 4 1 Detach 3 | . 1 1 1 Swap 8 | . 4 4 . Drop 3 | . 3 . . Fire 37 | . 16 19 2 Melee . | . . . . Ram . | . . . . Kick 4 | . 1 3 . Crush . | . . . . Escape Stasis . | . . . . Rewire . | . . . . Trap . | . . . . Miscellaneous . | . . . . Route ------- -11/Scrapyard -10/Materials -9/Materials -9/Storage History --------- Turn | Location | Event 15 | -11/Scrapyard | Discovered new exit (range 12) 155 | -11/Scrapyard | Entered Materials 290 | -10/Materials | Discovered new exit (range 16) 308 | -10/Materials | Build established: Mutant 434 | -10/Materials | Entered another Materials area 434 | -9/Materials | Evolved 2 slots: Propulsion x2 721 | -9/Materials | Central database locked down 722 | -9/Materials | Build established: Scavenger-Mutant 850 | -9/Materials | Discovered new exit (range 11) 904 | -9/Materials | Entered Storage 910 | -9/Storage | Lost 3 parts (2n1w) 1019 | -9/Storage | Self-destructed Last Messages --------------- GOAL=ESCAPE 00909_ System corrupted: Aluminum Leg fused. 00960_ HDKW9IAOL8N IG>ZR|V|5KVD 00972_ Connecting with Door Terminal... 00972_ Current location identified: Storage 00977_ Connecting with Door Terminal... >>Open(Door) Sealed Heavy Doors opened. 00985_ Acquired Prototype Flight Unit. 00985_ Identified Imp. Flight Unit. 00991_ Acquired Imp. Flight Unit. 00992_ V1T6UR1ZUAH%=TXCX5W=O7/GMMN0>MU|%M/ CW 00994_ Acquired Imp. Flight Unit. 00998_ Discarded Aluminum Leg. 00998_ Acquired Imp. Flight Unit. 01005_ Connecting with Door Terminal... 01006_ K-01 Serf collects debris. 01014_ S-10 Pest destroyed. 01017_ Door malfunctions. 01017_ K-01 Serf sends out distress signal. Map ----- +----------------------------------------------------+ | ????????????????????????????????????????????????? | | ????????????????????????????????????????????????? | | ????????????????????????????????????????????????? | | ????????????????????????????????????????????????? | | ????????????????????????????????????????????????? | | ????????????????????????????????????????????????? | | ????????????????????????????????????????????????? | | ????????????????????????????????????????????????? | | ????????????????????????????????????????????????? | | ????????????????????????????????????????????????? | | ????????????????????????????????????????????????? | | ????????????????????????????????????????????????? | | ????????????????????????????????????????????????? | | ????????????????????????????????????????????????? | | ????????????????????????????????????????????????? | | ????????????????????????????????????????????????? | | ????????????????????????????????????????????????? | | ????????????????????????????????????????????????? | | ??????????????????????########??????????????????? | | ??????????????????????? a ???????????????????? | | ???????????????????????# #???????????????????? | | ??????????????#????????# #???????????????????? | | ??????????????# ??????#u #???????????????????? | | ??????????????# """????# k#???????????????????? | | ??????????????# """ ??#k ####################? | | ??????????????# """ #=@ # #? | | ??????????????# sss* # #? | | ??????????????# """"" # # #? | | ????????????????""""" ?#######+### # """ """ #? | | ????????????????"""""??????## ## + """ """ #? | | ???????????????? ????????#T ## # """ """ #? | | ????????????????##?????????## ## # #? | | ????????????????????????????# =## # #? | | ????????????????????????????# =## ###########? | | ????????????????????????????# =## #??????????? | | ????????????????????????????# =######??????????? | | ????????????????????????????#####???????????????? | | ????????????????????????????????????????????????? | | ????????????????????????????????????????????????? | | ????????????????????????????????????????????????? | | ????????????????????????????????????????????????? | | ????????????????????????????????????????????????? | | ????????????????????????????????????????????????? | | ????????????????????????????????????????????????? | | ????????????????????????????????????????????????? | | ????????????????????????????????????????????????? | | ????????????????????????????????????????????????? | | | | | | | +----------------------------------------------------+ Best States ------------- Heat Dissipation 38 Energy Generation 10 Energy Capacity 250 Matter Stores 300 Matter Capacity 300 Sight Range 18 Terrain Scan Density 10 Evasion (%) 55 Recoil Reduction 2 Item Schematics ----------------- None Robot Schematics ------------------ None Fabricated ------------ Nothing Repaired ---------- Nothing Alien Tech Used ----------------- None Achievements -------------- Party Time Challenges ------------ None Game ------ Seed PortableWardroneLoader Manual? 0 Play Time 00:14:57 Cumulative 22.4 hours Start 2025.10.16 @ 21:10:32 End 2025.10.17 @ 00:12:05 Sessions 3 Manual Loads 0 Difficulty Rogue Special Mode None Game No. 27 Rogue 27 Adventurer 0 Explorer 0 Win Type - Total 0 Types 0/0/0/0/0/0/0/0/0/0 Lore% 24 Gallery% 24 Achievement% 21 Wizard Run 0 Options --------- Layout 2 ASCII 0 Keyboard 1 Movement Vi Keybinds 0 Fullscreen 2 Font 24/Smallcaps Map View 50x44 Zoom Use 0% Tactical HUD 1 Map Filters NONE Filters NONE Steam 0 RUN: 3427f0be-69b8-47c6-b80e-a079bebc5b47